[Event "European-ch Seniors 2018"]
[Site "Drammen"]
[Date "2018.08.09"]
[Round "6"]
[White "Karason, Askell Orn"]
[Black "Lederman, Leon S"]
[Result "1-0"]
[ECO "D35"]
[WhiteElo "2217"]
[BlackElo "2245"]
[Annotator "NA"]
[PlyCount "105"]
[EventDate "2018.08.04"]
[EventType "swiss"]
[EventCountry "NOR"]
[SourceTitle "playchess.com"]
[Source "ChessBase"]
[SourceQuality "1"]
[TimeControl "40/5400+30:1800+30"]

1. d4 {[%emt 0:00:00]} d5 {[%emt 0:00:00]} 2. c4 {[%emt 0:00:00]} e6 {[%emt 0:00:00]} 3. Nc3 {[%emt 0:00:00]} Nf6 {[%emt 0:00:00]} 4. cxd5 {[%emt 0:00:00]} exd5 {[%emt 0:00:00]} 5. Bg5 {[%emt 0:00:00]} Be7 {[%emt 0:00:00]} 6. e3 {[%emt 0:00:00]} Nbd7 {[%emt 0:00:02]} 7. Qc2 {[%emt 0:00:28]} c6 {[%emt 0:00:03]} 8. Bd3 {[%emt 0:00:03]} O-O {[%emt 0:00:05]} 9. Nge2 {[%emt 0:03:05]} Re8 {[%emt 0:00:22]} 10. O-O {[%emt 0:00:13]} Nf8 {[%emt 0:00:07]} 11. f3 {[%emt 0:03:00]} g6 {[%emt 0:00:32]} 12. Rad1 {[%emt 0:10:13]} Ne6 {[%emt 0:01:48]} 13. Bh4 {[%emt 0:01:21]} Ng7 {[%emt 0:03:37]} 14. e4 {[%emt 0:09:32]} dxe4 {[%emt 0:27:01]} 15. fxe4 {[%emt 0:00:39]} Ng4 {[%emt 0:00:14]} 16. Bxe7 {[%emt 0:00:05]} Qxe7 {[%emt 0:00:04]} 17. Qd2 {[%emt 0:07:04]} f5 {[%emt 0:01:53]} 18. h3 {[%emt 0:17:41]} Nf6 {[%emt 0:00:10]} 19. e5 {[%emt 0:03:03]} Nd7 {[%emt 0:01:25]} 20. Bc4+ {[%emt 0:03:43]} Kh8 {[%emt 0:00:37]} 21. Qh6 {[%emt 0:04:05]} Nf8 {[%emt 0:02:07]} 22. Ne4 {[%emt 0:02:43]} Be6 {[%emt 0:00:14]} 23. Bxe6 {[%emt 0:09:17]} Ngxe6 {[%emt 0:02:34]} 24. Nd6 {[%emt 0:01:01]} Red8 {[%emt 0:00:32]} 25. g4 {[%emt 0:00:54]} Ng7 {[%emt 0:06:06]} 26. Ng3 {[%emt 0:04:49]} Rxd6 {[%emt 0:05:27]} 27. exd6 {[%emt 0:00:06]} Qxd6 {[%emt 0:00:05]} 28. Qf4 {[%emt 0:07:24]} Qxf4 {[%emt 0:00:32]} 29. Rxf4 {[%emt 0:00:01]} Nge6 {[%emt 0:00:25]} 30. Rf2 {[%emt 0:00:14]} f4 {[%emt 0:00:17]} 31. Ne4 {[%emt 0:00:24]} Rd8 {[%emt 0:01:38]} 32. Rfd2 {[%emt 0:00:52]} Nc7 {[%emt 0:02:50]} 33. d5 {[%emt 0:02:48]} Rxd5 {[%emt 0:10:21]} 34. Rxd5 {[%emt 0:01:45]} Nxd5 {[%emt 0:00:09]} 35. Nc3 {[%emt 0:00:07]} Ne7 {[%emt 0:11:04]} 36. Re1 {[%emt 0:03:17]} Nd5 {[%emt 0:01:03]} 37. Nxd5 {[%emt 0:00:35]} cxd5 {[%emt 0:00:02]} 38. Re7 {[%emt 0:00:41]} a6 {[%emt 0:04:23]} 39. Rxb7 {[%emt 0:02:02]} Ne6 {[%emt 0:00:11]} 40. Rd7 {[%emt 0:00:00]} d4 {[%emt 0:00:00]} 41. Rd6 {[%emt 0:03:08]} Ng5 {[%emt 0:02:21]} 42. h4 {[%emt 0:00:21]} Nf3+ {[%emt 0:00:10]} 43. Kf2 {[%emt 0:00:07]} Nxh4 {[%emt 0:00:07]} 44. Rxa6 {[%emt 0:00:23]} g5 {[%emt 0:01:34]} 45. b4 {[%emt 0:00:47]} Kg7 {[%emt 0:00:23]} 46. b5 {[%emt 0:05:06]} h5 {[%emt 0:02:44]} 47. b6 {[%emt 0:06:56]} hxg4 {[%emt 0:01:54]} 48. b7 {[%emt 0:01:54]} g3+ {[%emt 0:00:06]} 49. Ke2 {[%emt 0:00:08]} f3+ {[%emt 0:01:20]} 50. Kd2 {[%emt 0:00:06]} f2 {[%emt 0:03:21]} 51. b8=Q {[%emt 0:00:20]} f1=Q {[%emt 0:00:07]} 52. Qe5+ {[%emt 0:00:32]} Kf7 {[%emt 0:03:13]} 53. Qc7+ {[%emt 0:00:21]} 1-0

[Event "European-ch Seniors 2018"]
[Site "Drammen"]
[Date "2018.08.09"]
[Round "6"]
[White "Zimmermann, Luc"]
[Black "Bjerke, Richard"]
[Result "1-0"]
[ECO "C09"]
[WhiteElo "2184"]
[BlackElo "2141"]
[Annotator "NA"]
[PlyCount "151"]
[EventDate "2018.08.04"]
[EventType "swiss"]
[EventCountry "NOR"]
[SourceTitle "playchess.com"]
[Source "ChessBase"]
[SourceQuality "1"]
[TimeControl "40/5400+30:1800+30"]

1. e4 {[%emt 0:00:00]} e6 {[%emt 0:00:00]} 2. d4 {[%emt 0:00:00]} d5 {[%emt 0:00:00]} 3. Nd2 {[%emt 0:00:00]} c5 {[%emt 0:00:22]} 4. exd5 {[%emt 0:00:00]} exd5 {[%emt 0:00:15]} 5. Ngf3 {[%emt 0:00:00]} Nc6 {[%emt 0:00:15]} 6. Bb5 {[%emt 0:00:08]} Qe7+ {[%emt 0:01:10]} 7. Be2 {[%emt 0:05:14]} Qc7 {[%emt 0:00:19]} 8. O-O {[%emt 0:02:39]} Nf6 {[%emt 0:01:10]} 9. Re1 {[%emt 0:02:54]} Be7 {[%emt 0:02:07]} 10. dxc5 {[%emt 0:01:54]} Bxc5 {[%emt 0:08:39]} 11. Nb3 {[%emt 0:03:12]} Bb6 {[%emt 0:01:36]} 12. Bd3+ {[%emt 0:22:12]} Be6 {[%emt 0:01:43]} 13. Be3 {[%emt 0:00:29]} O-O {[%emt 0:02:56]} 14. Qd2 {[%emt 0:16:59]} Rac8 {[%emt 0:08:44]} 15. Bxb6 {[%emt 0:04:11]} Qxb6 {[%emt 0:01:13]} 16. c3 {[%emt 0:01:25]} Rfe8 {[%emt 0:07:31]} 17. Nfd4 {[%emt 0:07:12]} Qc7 {[%emt 0:04:58]} 18. f3 {[%emt 0:08:24]} Ne5 {[%emt 0:04:12]} 19. Rad1 {[%emt 0:04:48]} Nxd3 {[%emt 0:08:31]} 20. Qxd3 {[%emt 0:00:05]} Qf4 {[%emt 0:06:34]} 21. Qd2 {[%emt 0:01:31]} Qd6 {[%emt 0:05:54]} 22. Qf2 {[%emt 0:00:07]} b6 {[%emt 0:05:59]} 23. Qg3 {[%emt 0:00:42]} Qxg3 {[%emt 0:01:26]} 24. hxg3 {[%emt 0:00:01]} Bd7 {[%emt 0:00:24]} 25. Rxe8+ {[%emt 0:04:18]} Rxe8 {[%emt 0:00:26]} 26. Nc1 {[%emt 0:00:41]} g6 {[%emt 0:06:03]} 27. Kf2 {[%emt 0:00:32]} Kf8 {[%emt 0:00:31]} 28. g4 {[%emt 0:02:54]} h6 {[%emt 0:02:03]} 29. Rh1 {[%emt 0:01:20]} Kg7 {[%emt 0:00:44]} 30. Nd3 {[%emt 0:00:46]} a5 {[%emt 0:04:06]} 31. Nf4 {[%emt 0:01:25]} Re7 {[%emt 0:03:29]} 32. Rd1 {[%emt 0:01:05]} Re5 {[%emt 0:01:49]} 33. Rb1 {[%emt 0:04:06]} Re8 {[%emt 0:01:46]} 34. Nc2 {[%emt 0:01:13]} g5 {[%emt 0:05:36]} 35. Ne2 {[%emt 0:02:48]} h5 {[%emt 0:00:42]} 36. gxh5 {[%emt 0:00:22]} Nxh5 {[%emt 0:00:10]} 37. Rd1 {[%emt 0:00:31]} Nf6 {[%emt 0:00:58]} 38. Ne3 {[%emt 0:00:39]} Re5 {[%emt 0:01:59]} 39. g4 {[%emt 0:00:29]} Bc8 {[%emt 0:02:00]} 40. Ng3 {[%emt 0:00:00]} Bd7 {[%emt 0:00:00]} 41. Rh1 {[%emt 0:11:33]} Ng8 {[%emt 0:02:36]} 42. Ngf5+ {[%emt 0:10:38]} Bxf5 {[%emt 0:01:04]} 43. Nxf5+ {[%emt 0:00:02]} Kf8 {[%emt 0:00:44]} 44. Rh5 {[%emt 0:02:57]} f6 {[%emt 0:10:57]} 45. Rh8 {[%emt 0:04:13]} Re8 {[%emt 0:05:29]} 46. Rh7 {[%emt 0:00:16]} Rb8 {[%emt 0:04:51]} 47. Rd7 {[%emt 0:00:31]} Ke8 {[%emt 0:00:08]} 48. Rxd5 {[%emt 0:00:09]} Ne7 {[%emt 0:00:12]} 49. Nxe7 {[%emt 0:00:46]} Kxe7 {[%emt 0:00:05]} 50. Rb5 {[%emt 0:00:25]} Kd6 {[%emt 0:00:45]} 51. Rf5 {[%emt 0:01:24]} Ke6 {[%emt 0:00:30]} 52. Ke3 {[%emt 0:00:23]} Rd8 {[%emt 0:00:10]} 53. Rb5 {[%emt 0:00:10]} Rd6 {[%emt 0:00:06]} 54. Ke4 {[%emt 0:00:17]} Rc6 {[%emt 0:00:38]} 55. b3 {[%emt 0:01:23]} Rd6 {[%emt 0:03:28]} 56. c4 {[%emt 0:01:57]} Rc6 {[%emt 0:00:06]} 57. Kd4 {[%emt 0:00:57]} Rd6+ {[%emt 0:00:46]} 58. Rd5 {[%emt 0:00:02]} Rc6 {[%emt 0:00:12]} 59. a4 {[%emt 0:00:53]} Ke7 {[%emt 0:01:17]} 60. c5 {[%emt 0:00:11]} Ke6 {[%emt 0:00:52]} 61. cxb6 {[%emt 0:00:32]} Rxb6 {[%emt 0:00:20]} 62. Rb5 {[%emt 0:00:07]} Ra6 {[%emt 0:03:14]} 63. Kc4 {[%emt 0:01:48]} Kd6 {[%emt 0:00:43]} 64. Rf5 {[%emt 0:00:16]} Ke6 {[%emt 0:00:17]} 65. Rb5 {[%emt 0:01:27]} Kd6 {[%emt 0:00:36]} 66. Kd4 {[%emt 0:00:01]} Ke6 {[%emt 0:00:33]} 67. Ke4 {[%emt 0:00:01]} Ra8 {[%emt 0:02:50]} 68. Rb6+ {[%emt 0:00:30]} Ke7 {[%emt 0:00:02]} 69. Kf5 {[%emt 0:00:08]} Rc8 {[%emt 0:00:25]} 70. Rb7+ {[%emt 0:00:04]} Kd6 {[%emt 0:00:33]} 71. Kxf6 {[%emt 0:00:16]} Rf8+ {[%emt 0:00:31]} 72. Kxg5 {[%emt 0:00:16]} Rxf3 {[%emt 0:00:05]} 73. Kg6 {[%emt 0:00:21]} Re3 {[%emt 0:00:26]} 74. g5 {[%emt 0:00:24]} Re6+ {[%emt 0:00:07]} 75. Kf7 {[%emt 0:00:17]} Re1 {[%emt 0:00:11]} 76. g6 {[%emt 0:00:16]} 1-0

[Event "European-ch Seniors 2018"]
[Site "Drammen"]
[Date "2018.08.09"]
[Round "6"]
[White "Fatalibekova, Elena"]
[Black "Renman, Nils Gustaf"]
[Result "0-1"]
[ECO "A06"]
[WhiteElo "2181"]
[BlackElo "2348"]
[Annotator "NA"]
[PlyCount "88"]
[EventDate "2018.08.04"]
[EventType "swiss"]
[EventCountry "NOR"]
[SourceTitle "playchess.com"]
[Source "ChessBase"]
[SourceQuality "1"]
[TimeControl "40/5400+30:1800+30"]

1. Nf3 {[%emt 0:00:00]} d5 {[%emt 0:00:00]} 2. e3 {[%emt 0:00:00]} Nf6 {[%emt 0:00:25]} 3. c4 {[%emt 0:00:00]} e6 {[%emt 0:00:06]} 4. d4 {[%emt 0:00:00]} c6 {[%emt 0:00:10]} 5. b3 {[%emt 0:01:22]} Nbd7 {[%emt 0:00:25]} 6. Bd3 {[%emt 0:00:38]} Bd6 {[%emt 0:03:44]} 7. Bb2 {[%emt 0:00:14]} Qe7 {[%emt 0:02:46]} 8. Nbd2 {[%emt 0:03:26]} e5 {[%emt 0:06:11]} 9. dxe5 {[%emt 0:02:06]} Nxe5 {[%emt 0:02:41]} 10. Nxe5 {[%emt 0:00:02]} Bxe5 {[%emt 0:00:06]} 11. Bxe5 {[%emt 0:00:34]} Qxe5 {[%emt 0:00:03]} 12. O-O {[%emt 0:01:05]} O-O {[%emt 0:00:24]} 13. Nf3 {[%emt 0:01:00]} Qe7 {[%emt 0:01:15]} 14. Qc2 {[%emt 0:01:31]} dxc4 {[%emt 0:01:22]} 15. Bxc4 {[%emt 0:00:25]} Bg4 {[%emt 0:07:09]} 16. Nd4 {[%emt 0:00:09]} c5 {[%emt 0:03:34]} 17. Ne2 {[%emt 0:01:33]} Rad8 {[%emt 0:02:42]} 18. Rad1 {[%emt 0:02:14]} g6 {[%emt 0:04:11]} 19. Qc1 {[%emt 0:08:04]} Bd7 {[%emt 0:15:30]} 20. Nc3 {[%emt 0:02:16]} Bc6 {[%emt 0:01:47]} 21. f3 {[%emt 0:01:19]} a6 {[%emt 0:05:20]} 22. a4 {[%emt 0:00:18]} Rxd1 {[%emt 0:03:58]} 23. Rxd1 {[%emt 0:00:07]} Rd8 {[%emt 0:00:05]} 24. e4 {[%emt 0:11:46]} Rxd1+ {[%emt 0:07:30]} 25. Qxd1 {[%emt 0:00:17]} Qe5 {[%emt 0:00:04]} 26. Qd3 {[%emt 0:00:49]} Kg7 {[%emt 0:00:47]} 27. Ne2 {[%emt 0:09:32]} Nd7 {[%emt 0:06:35]} 28. Qc3 {[%emt 0:07:54]} b5 {[%emt 0:00:53]} 29. axb5 {[%emt 0:00:12]} axb5 {[%emt 0:00:06]} 30. Bd3 {[%emt 0:00:11]} b4 {[%emt 0:00:46]} 31. Qc1 {[%emt 0:01:41]} Qd6 {[%emt 0:02:00]} 32. Bc4 {[%emt 0:01:42]} Ne5 {[%emt 0:00:59]} 33. f4 {[%emt 0:03:32]} Nxc4 {[%emt 0:02:25]} 34. Qxc4 {[%emt 0:00:02]} Bb7 {[%emt 0:00:51]} 35. Qc2 {[%emt 0:13:23]} Qc6 {[%emt 0:05:06]} 36. Ng3 {[%emt 0:01:11]} Ba6 {[%emt 0:01:36]} 37. Qb2+ {[%emt 0:00:45]} Qf6 {[%emt 0:03:32]} 38. Qc1 {[%emt 0:03:34]} Qd4+ {[%emt 0:00:31]} 39. Kh1 {[%emt 0:00:01]} c4 {[%emt 0:00:24]} 40. bxc4 {[%emt 0:00:00]} Bxc4 {[%emt 0:00:00]} 41. f5 {[%emt 0:04:21]} b3 {[%emt 0:03:15]} 42. f6+ {[%emt 0:05:58]} Kxf6 {[%emt 0:02:13]} 43. Qf4+ {[%emt 0:00:58]} Ke6 {[%emt 0:05:35]} 44. Qg4+ {[%emt 0:00:24]} Ke7 {[%emt 0:00:20]} 0-1

[Event "European-ch Seniors 2018"]
[Site "Drammen"]
[Date "2018.08.09"]
[Round "6"]
[White "Hedin, Gunnar"]
[Black "Barle, Janez"]
[Result "1/2-1/2"]
[ECO "A03"]
[WhiteElo "2179"]
[BlackElo "2249"]
[Annotator "NA"]
[PlyCount "21"]
[EventDate "2018.08.04"]
[EventType "swiss"]
[EventCountry "NOR"]
[SourceTitle "playchess.com"]
[Source "ChessBase"]
[SourceQuality "1"]
[TimeControl "40/5400+30:1800+30"]

1. f4 {[%emt 0:00:02]} d5 {[%emt 0:00:06]} 2. Nf3 {[%emt 0:00:17]} Nc6 {[%emt 0:00:39]} 3. e3 {[%emt 0:06:43]} Bg4 {[%emt 0:05:05]} 4. Bb5 {[%emt 0:01:52]} e6 {[%emt 0:03:42]} 5. h3 {[%emt 0:06:09]} Bxf3 {[%emt 0:06:51]} 6. Qxf3 {[%emt 0:00:32]} Nge7 {[%emt 0:02:33]} 7. O-O {[%emt 0:11:34]} g6 {[%emt 0:08:15]} 8. c3 {[%emt 0:02:15]} Bg7 {[%emt 0:01:13]} 9. d4 {[%emt 0:00:10]} O-O {[%emt 0:01:37]} 10. Nd2 {[%emt 0:16:00]} Qd7 {[%emt 0:14:07]} 11. e4 {[%emt 0:06:40]} 1/2-1/2

[Event "European-ch Seniors 2018"]
[Site "Drammen"]
[Date "2018.08.09"]
[Round "6"]
[White "Holst, Conny"]
[Black "Blomstrom, Lars"]
[Result "1/2-1/2"]
[ECO "E73"]
[WhiteElo "2147"]
[BlackElo "2167"]
[Annotator "NA"]
[PlyCount "27"]
[EventDate "2018.08.04"]
[EventType "swiss"]
[EventCountry "NOR"]
[SourceTitle "playchess.com"]
[Source "ChessBase"]
[SourceQuality "1"]
[TimeControl "40/5400+30:1800+30"]

1. d4 {[%emt 0:00:00]} Nf6 {[%emt 0:00:00]} 2. c4 {[%emt 0:00:00]} g6 {[%emt 0:00:00]} 3. Nc3 {[%emt 0:00:02]} Bg7 {[%emt 0:00:00]} 4. e4 {[%emt 0:00:14]} d6 {[%emt 0:00:00]} 5. Be2 {[%emt 0:00:24]} O-O {[%emt 0:00:49]} 6. Bg5 {[%emt 0:01:43]} c5 {[%emt 0:00:50]} 7. d5 {[%emt 0:01:25]} h6 {[%emt 0:13:50]} 8. Be3 {[%emt 0:03:55]} e6 {[%emt 0:00:06]} 9. Qd2 {[%emt 0:05:27]} exd5 {[%emt 0:00:11]} 10. cxd5 {[%emt 0:00:35]} Re8 {[%emt 0:12:10]} 11. f3 {[%emt 0:07:21]} a6 {[%emt 0:05:59]} 12. a4 {[%emt 0:02:23]} Nbd7 {[%emt 0:01:02]} 13. Nh3 {[%emt 0:05:34]} Ne5 {[%emt 0:03:44]} 14. Nf2 {[%emt 0:03:32]} 1/2-1/2

[Event "European-ch Seniors 2018"]
[Site "Drammen"]
[Date "2018.08.09"]
[Round "6"]
[White "Ashby, Anthony"]
[Black "Furman, Boris"]
[Result "1/2-1/2"]
[ECO "B22"]
[WhiteElo "2055"]
[BlackElo "2242"]
[Annotator "NA"]
[PlyCount "141"]
[EventDate "2018.08.04"]
[EventType "swiss"]
[EventCountry "NOR"]
[SourceTitle "playchess.com"]
[Source "ChessBase"]
[SourceQuality "1"]
[TimeControl "40/5400+30:1800+30"]

1. e4 {[%emt 0:00:00]} c5 {[%emt 0:00:00]} 2. c3 {[%emt 0:00:00]} Nf6 {[%emt 0:00:19]} 3. d3 {[%emt 0:01:18]} g6 {[%emt 0:04:05]} 4. f4 {[%emt 0:01:15]} d6 {[%emt 0:00:46]} 5. Nf3 {[%emt 0:00:28]} Bg7 {[%emt 0:00:21]} 6. g3 {[%emt 0:02:13]} Nc6 {[%emt 0:00:59]} 7. Bg2 {[%emt 0:00:19]} O-O {[%emt 0:01:46]} 8. O-O {[%emt 0:01:24]} e5 {[%emt 0:04:17]} 9. Qc2 {[%emt 0:05:43]} Qe7 {[%emt 0:04:46]} 10. Na3 {[%emt 0:08:22]} Nh5 {[%emt 0:04:57]} 11. Bd2 {[%emt 0:09:36]} exf4 {[%emt 0:03:53]} 12. gxf4 {[%emt 0:00:28]} f5 {[%emt 0:00:24]} 13. Rae1 {[%emt 0:04:51]} fxe4 {[%emt 0:07:19]} 14. Ng5 {[%emt 0:02:25]} Kh8 {[%emt 0:04:44]} 15. Nxe4 {[%emt 0:11:18]} Qh4 {[%emt 0:11:38]} 16. f5 {[%emt 0:07:29]} Be5 {[%emt 0:02:12]} 17. h3 {[%emt 0:00:41]} Nf4 {[%emt 0:03:26]} 18. Bxf4 {[%emt 0:02:52]} Bxf4 {[%emt 0:00:11]} 19. Qf2 {[%emt 0:05:48]} Qxf2+ {[%emt 0:00:40]} 20. Rxf2 {[%emt 0:00:08]} g5 {[%emt 0:03:26]} 21. Rxf4 {[%emt 0:09:15]} gxf4 {[%emt 0:00:51]} 22. Nxd6 {[%emt 0:00:09]} Bd7 {[%emt 0:02:23]} 23. Rf1 {[%emt 0:08:14]} Rf6 {[%emt 0:02:34]} 24. Nxb7 {[%emt 0:01:38]} Rxf5 {[%emt 0:00:36]} 25. Nc4 {[%emt 0:00:26]} Rg8 {[%emt 0:00:47]} 26. Nbd6 {[%emt 0:02:48]} f3 {[%emt 0:10:37]} 27. Nxf5 {[%emt 0:02:35]} Rxg2+ {[%emt 0:00:19]} 28. Kh1 {[%emt 0:00:04]} Bxf5 {[%emt 0:00:13]} 29. Rxf3 {[%emt 0:00:14]} Rg5 {[%emt 0:00:28]} 30. Nd6 {[%emt 0:00:19]} Be6 {[%emt 0:00:51]} 31. Ne4 {[%emt 0:00:33]} Re5 {[%emt 0:02:55]} 32. b3 {[%emt 0:02:13]} Bd5 {[%emt 0:02:10]} 33. Rf4 {[%emt 0:00:42]} Ne7 {[%emt 0:02:45]} 34. Kh2 {[%emt 0:00:20]} Ng6 {[%emt 0:00:46]} 35. Rf6 {[%emt 0:00:43]} Bxe4 {[%emt 0:00:47]} 36. dxe4 {[%emt 0:00:09]} Rxe4 {[%emt 0:00:09]} 37. Rc6 {[%emt 0:00:14]} Re2+ {[%emt 0:00:47]} 38. Kg1 {[%emt 0:00:06]} Rxa2 {[%emt 0:02:01]} 39. Rxc5 {[%emt 0:00:08]} Nf4 {[%emt 0:00:54]} 40. h4 {[%emt 0:00:00]} Ra3 {[%emt 0:00:00]} 41. Rc4 {[%emt 0:04:59]} Ng6 {[%emt 0:11:51]} 42. h5 {[%emt 0:08:31]} Ne5 {[%emt 0:01:25]} 43. Rc5 {[%emt 0:00:59]} Nf7 {[%emt 0:03:11]} 44. b4 {[%emt 0:00:58]} Ra2 {[%emt 0:01:02]} 45. Kf1 {[%emt 0:01:16]} Kg7 {[%emt 0:00:16]} 46. Ke1 {[%emt 0:00:52]} Kh6 {[%emt 0:00:33]} 47. Kd1 {[%emt 0:01:02]} Ng5 {[%emt 0:00:10]} 48. Rc7 {[%emt 0:00:21]} Kxh5 {[%emt 0:00:14]} 49. c4 {[%emt 0:00:12]} Kg4 {[%emt 0:00:30]} 50. c5 {[%emt 0:00:34]} h5 {[%emt 0:00:12]} 51. c6 {[%emt 0:00:27]} Ra6 {[%emt 0:12:08]} 52. b5 {[%emt 0:04:47]} Rb6 {[%emt 0:04:05]} 53. Rxa7 {[%emt 0:01:10]} Rxb5 {[%emt 0:01:09]} 54. Ra4+ {[%emt 0:00:05]} Kg3 {[%emt 0:00:42]} 55. Rc4 {[%emt 0:00:08]} Rb8 {[%emt 0:00:30]} 56. Rc5 {[%emt 0:00:10]} Kg4 {[%emt 0:00:38]} 57. Rc4+ {[%emt 0:00:12]} Kf5 {[%emt 0:00:48]} 58. Rc5+ {[%emt 0:02:04]} Kf6 {[%emt 0:00:19]} 59. Ke1 {[%emt 0:01:02]} Rc8 {[%emt 0:00:34]} 60. c7 {[%emt 0:00:13]} h4 {[%emt 0:01:51]} 61. Kf1 {[%emt 0:00:23]} Kg6 {[%emt 0:01:06]} 62. Kg1 {[%emt 0:01:10]} Ne6 {[%emt 0:00:41]} 63. Re5 {[%emt 0:01:45]} Ng5 {[%emt 0:06:13]} 64. Rc5 {[%emt 0:01:08]} Ne4 {[%emt 0:00:20]} 65. Rc6+ {[%emt 0:03:39]} Kf5 {[%emt 0:01:07]} 66. Kh2 {[%emt 0:00:22]} Ng5 {[%emt 0:04:04]} 67. Rc1 {[%emt 0:01:14]} Ne6 {[%emt 0:00:32]} 68. Rf1+ {[%emt 0:01:39]} Kg5 {[%emt 0:01:22]} 69. Rg1+ {[%emt 0:00:32]} Kh5 {[%emt 0:00:48]} 70. Re1 {[%emt 0:00:12]} Nxc7 {[%emt 0:01:20]} 71. Rc1 {[%emt 0:00:07]} 1/2-1/2

[Event "European-ch Seniors 2018"]
[Site "Drammen"]
[Date "2018.08.09"]
[Round "6"]
[White "Johnsen, Sylvia"]
[Black "Burchardt, Brigitte"]
[Result "0-1"]
[ECO "A36"]
[WhiteElo "1977"]
[BlackElo "2189"]
[Annotator "NA"]
[PlyCount "82"]
[EventDate "2018.08.04"]
[EventType "swiss"]
[EventCountry "NOR"]
[SourceTitle "playchess.com"]
[Source "ChessBase"]
[SourceQuality "1"]
[TimeControl "40/5400+30:1800+30"]

1. c4 {[%emt 0:00:00]} c5 {[%emt 0:00:00]} 2. Nc3 {[%emt 0:00:00]} Nc6 {[%emt 0:00:00]} 3. g3 {[%emt 0:00:00]} Nf6 {[%emt 0:00:44]} 4. Bg2 {[%emt 0:00:00]} d6 {[%emt 0:00:05]} 5. Nf3 {[%emt 0:00:05]} g6 {[%emt 0:01:44]} 6. O-O {[%emt 0:01:28]} Bg7 {[%emt 0:00:05]} 7. d4 {[%emt 0:03:57]} cxd4 {[%emt 0:02:13]} 8. Nxd4 {[%emt 0:00:11]} Bd7 {[%emt 0:01:41]} 9. Nc2 {[%emt 0:02:39]} O-O {[%emt 0:01:46]} 10. e4 {[%emt 0:01:03]} Qc8 {[%emt 0:09:53]} 11. Ne3 {[%emt 0:07:58]} Re8 {[%emt 0:06:56]} 12. Ncd5 {[%emt 0:15:51]} Ne5 {[%emt 0:04:39]} 13. Qe2 {[%emt 0:01:41]} Nfg4 {[%emt 0:03:24]} 14. Rb1 {[%emt 0:12:46]} Rb8 {[%emt 0:06:24]} 15. f4 {[%emt 0:04:00]} Nxe3 {[%emt 0:01:14]} 16. Nxe3 {[%emt 0:00:33]} Nc6 {[%emt 0:02:41]} 17. Rd1 {[%emt 0:04:13]} b5 {[%emt 0:02:37]} 18. cxb5 {[%emt 0:01:42]} Nd4 {[%emt 0:00:45]} 19. Qf2 {[%emt 0:01:02]} Bxb5 {[%emt 0:00:41]} 20. b3 {[%emt 0:04:56]} Qa6 {[%emt 0:02:34]} 21. Bb2 {[%emt 0:02:21]} Ne2+ {[%emt 0:15:27]} 22. Kh1 {[%emt 0:00:05]} Nc3 {[%emt 0:00:27]} 23. Bxc3 {[%emt 0:00:12]} Bxc3 {[%emt 0:00:05]} 24. Nd5 {[%emt 0:00:14]} Ba5 {[%emt 0:01:34]} 25. f5 {[%emt 0:01:32]} Bd8 {[%emt 0:08:21]} 26. Rbc1 {[%emt 0:09:20]} Rc8 {[%emt 0:03:32]} 27. fxg6 {[%emt 0:02:40]} hxg6 {[%emt 0:00:05]} 28. Rxc8 {[%emt 0:01:49]} Qxc8 {[%emt 0:00:05]} 29. a4 {[%emt 0:00:30]} e6 {[%emt 0:02:10]} 30. Ne3 {[%emt 0:04:36]} Ba6 {[%emt 0:01:53]} 31. Rxd6 {[%emt 0:00:39]} Bb6 {[%emt 0:00:11]} 32. Qe1 {[%emt 0:00:43]} Qc5 {[%emt 0:00:50]} 33. Rxb6 {[%emt 0:01:45]} axb6 {[%emt 0:01:32]} 34. h4 {[%emt 0:02:36]} Qh5 {[%emt 0:05:33]} 35. g4 {[%emt 0:01:03]} Qa5 {[%emt 0:04:25]} 36. Qf2 {[%emt 0:04:04]} Rc8 {[%emt 0:01:26]} 37. g5 {[%emt 0:00:21]} Rc1+ {[%emt 0:00:54]} 38. Kh2 {[%emt 0:00:09]} Qe5+ {[%emt 0:00:37]} 39. Kh3 {[%emt 0:00:37]} Rc3 {[%emt 0:00:31]} 40. Kg4 {[%emt 0:00:00]} Qd4 {[%emt 0:00:00]} 41. Kf3 {[%emt 0:05:17]} Bb7 0-1

[Event "European-ch Seniors 2018"]
[Site "Drammen"]
[Date "2018.08.09"]
[Round "6"]
[White "Baliuniene, Margarita"]
[Black "Birkholz, Olga"]
[Result "0-1"]
[ECO "A04"]
[WhiteElo "1937"]
[BlackElo "2048"]
[Annotator "NA"]
[PlyCount "60"]
[EventDate "2018.08.04"]
[EventType "swiss"]
[EventCountry "NOR"]
[SourceTitle "playchess.com"]
[Source "ChessBase"]
[SourceQuality "1"]
[TimeControl "40/5400+30:1800+30"]

1. Nf3 {[%emt 0:00:00]} g6 {[%emt 0:00:00]} 2. d4 {[%emt 0:00:00]} Bg7 {[%emt 0:00:00]} 3. g3 {[%emt 0:00:00]} f5 {[%emt 0:00:38]} 4. Bg2 {[%emt 0:00:00]} Nf6 {[%emt 0:00:25]} 5. c4 {[%emt 0:00:36]} O-O {[%emt 0:00:51]} 6. Nc3 {[%emt 0:00:09]} c6 {[%emt 0:01:01]} 7. Bg5 {[%emt 0:02:11]} Ne4 {[%emt 0:05:30]} 8. Nxe4 {[%emt 0:07:56]} fxe4 {[%emt 0:00:13]} 9. Nh4 {[%emt 0:00:13]} Qa5+ {[%emt 0:04:27]} 10. Bd2 {[%emt 0:04:50]} Qa6 {[%emt 0:00:22]} 11. O-O {[%emt 0:05:53]} d5 {[%emt 0:04:40]} 12. cxd5 {[%emt 0:04:05]} cxd5 {[%emt 0:00:02]} 13. Qb3 {[%emt 0:00:43]} Be6 {[%emt 0:00:32]} 14. Be3 {[%emt 0:03:36]} Nc6 {[%emt 0:01:42]} 15. Rad1 {[%emt 0:01:24]} Na5 {[%emt 0:17:13]} 16. Qb4 {[%emt 0:02:29]} Bf6 {[%emt 0:01:04]} 17. f4 {[%emt 0:04:01]} Bg4 {[%emt 0:03:35]} 18. f5 {[%emt 0:07:15]} g5 {[%emt 0:05:24]} 19. Qc5 {[%emt 0:03:44]} Rad8 {[%emt 0:02:24]} 20. Nf3 {[%emt 0:00:56]} exf3 {[%emt 0:04:52]} 21. exf3 {[%emt 0:00:10]} Nc4 {[%emt 0:02:33]} 22. Bc1 {[%emt 0:00:33]} b6 {[%emt 0:01:36]} 23. Qb4 {[%emt 0:01:00]} Bxf5 {[%emt 0:01:33]} 24. f4 {[%emt 0:00:08]} g4 {[%emt 0:07:09]} 25. Rfe1 {[%emt 0:00:56]} Qa5 {[%emt 0:02:19]} 26. Qb3 {[%emt 0:01:15]} e6 {[%emt 0:04:03]} 27. Re2 {[%emt 0:01:34]} Nd6 {[%emt 0:02:41]} 28. a4 {[%emt 0:01:49]} Qa6 {[%emt 0:02:51]} 29. Bf1 {[%emt 0:03:10]} Qc8 {[%emt 0:00:35]} 30. Bd2 {[%emt 0:00:21]} Bxd4+ {[%emt 0:00:21]} 0-1